fUSD/lending_fUSD_20250820
["ID","MTS","AMOUNT","RATE_DAILY","PERIOD"]
[380385916,1755720654717,-214.041738,0.000276,7]
[380385917,1755720654726,-151.0,0.000276,7]
[380385918,1755720654735,-151.0,0.000276,7]
[380385919,1755720654745,-151.995471,0.000276,7]
[380385920,1755720654754,-151.0,0.000276,7]
[380385921,1755720654766,-151.0,0.000276,7]
[380385922,1755720654776,-151.0,0.000276,7]
[380385923,1755720654785,-151.0,0.000276,7]
[380385924,1755720654795,-151.0,0.000276,7]
[380385925,1755720654804,-157.492832,0.000276,7]
[380385926,1755720654813,-151.0,0.000276,7]
[380385927,1755720654823,-151.0,0.000276,7]
[380385928,1755720654835,-151.0,0.000276,7]
[380385929,1755720654845,-271.033984,0.000276,7]
[380385931,1755720654854,-151.0,0.000276,7]
[380385932,1755720654863,-223.340542,0.000276,7]
[380385933,1755720654873,-157.492832,0.000276,7]
[380385934,1755720654882,-157.492832,0.000276,7]
[380385935,1755720654892,-157.492832,0.000276,7]
[380385936,1755720654901,-151.0,0.000276,7]
[380385937,1755720654911,-151.0,0.000276,7]
[380385938,1755720654921,-287.365116,0.000276,7]
[380385939,1755720654930,-153.907366,0.000276,7]
[380385940,1755720654940,-253.635476,0.000276,7]
[380385941,1755720654950,-151.0,0.000276,7]
[380385942,1755720654959,-253.635476,0.000276,7]
[380385943,1755720654969,-253.635476,0.000276,7]
[380385945,1755720654982,-253.635476,0.000276,7]
[380385946,1755720654991,-151.0,0.000276,7]
[380385947,1755720655001,-151.0,0.000276,7]
[380385948,1755720655010,-553.763521,0.000276,7]
[380385949,1755720655020,-553.763521,0.000276,7]
[380385951,1755720655030,-553.763521,0.000276,7]
[380385952,1755720655039,-553.763521,0.000276,7]
[380385953,1755720655050,-151.0,0.000276,7]
[380385954,1755720655059,-151.0,0.000276,7]
[380385955,1755720655068,-151.0,0.000276,7]
[380385956,1755720655078,-151.0,0.000276,7]
[380385957,1755720655087,-151.0,0.000276,7]
[380385959,1755720655097,-151.0,0.000276,7]
[380385960,1755720655106,-151.0,0.000276,7]
[380385961,1755720655117,-151.0,0.000276,7]
[380385962,1755720655130,-151.0,0.000276,7]
[380385963,1755720655139,-151.0,0.000276,7]
[380385964,1755720655149,-151.0,0.000276,7]
[380385966,1755720655159,-151.0,0.000276,7]
[380385967,1755720655168,-174.066787,0.000276,7]
[380385968,1755720655178,-151.0,0.000276,7]
[380385969,1755720655188,-151.0,0.000276,7]
[380385971,1755720655198,-151.0,0.000276,7]
[380385972,1755720655208,-236.420488,0.000276,7]
[380385973,1755720655218,-151.0,0.000276,7]
[380385974,1755720655227,-151.0,0.000276,7]
[380385975,1755720655237,-151.0,0.000276,7]
[380385976,1755720655247,-151.0,0.000276,7]
[380385978,1755720655257,-151.0,0.000276,7]
[380385979,1755720655267,-151.0,0.000276,7]
[380385980,1755720655277,-151.0,0.000276,7]
[380385981,1755720655287,-151.0,0.000276,7]
[380385982,1755720655297,-244.39952,0.000276,7]
[380385983,1755720655307,-151.0,0.000276,7]
[380385984,1755720655316,-221.230152,0.000276,7]
[380385986,1755720655326,-151.0,0.000276,7]
[380385987,1755720655335,-151.0,0.000276,7]
[380385988,1755720655345,-151.0,0.000276,7]
[380385989,1755720655355,-151.0,0.000276,7]
[380385990,1755720655364,-151.0,0.000276,7]
[380385992,1755720655374,-151.0,0.000276,7]
[380385993,1755720655384,-151.0,0.000276,7]
[380385994,1755720655394,-168.225096,0.000276,7]
[380385995,1755720655404,-151.0,0.000276,7]
[380385996,1755720655414,-151.0,0.000276,7]
[380385997,1755720655424,-241.14846,0.000276,7]
[380385999,1755720655433,-151.0,0.000276,7]
[380386000,1755720655443,-168.225096,0.000276,7]
[380386001,1755720655453,-168.225096,0.000276,7]
[380386002,1755720655463,-168.225096,0.000276,7]
[380386003,1755720655473,-151.0,0.000276,7]
[380386004,1755720655482,-151.0,0.000276,7]
[380386006,1755720655491,-151.0,0.000276,7]
[380386007,1755720655500,-165.394592,0.000276,7]
[380386008,1755720655510,-106.53725621,0.000276,7]
[380386009,1755720655523,-44.46274379,0.000276,7]
[380386010,1755720655532,-165.394592,0.000276,7]
[380386012,1755720655542,-151.0,0.000276,7]
[380386013,1755720655552,-165.394592,0.000276,7]
[380386014,1755720655562,-151.0,0.000276,7]
[380386015,1755720655571,-165.394592,0.000276,7]
[380386016,1755720655581,-245.0,0.000276,7]
[380386018,1755720655591,-151.0,0.000276,7]
[380386019,1755720655600,-151.0,0.000276,7]
[380386020,1755720655609,-422.429676,0.000276,7]
[380386021,1755720655619,-151.0,0.000276,7]
[380386022,1755720655628,-422.429676,0.000276,7]
[380386023,1755720655637,-151.0,0.000276,7]
[380386025,1755720655647,-422.429676,0.000276,7]
[380386026,1755720655656,-179.2604,0.000276,7]
[380386027,1755720655666,-151.0,0.000276,7]
[380386028,1755720655676,-151.0,0.000276,7]
[380386029,1755720655685,-422.429676,0.000276,7]
[380386031,1755720655695,-151.0,0.000276,7]
[380386032,1755720655705,-179.2604,0.000276,7]
[380386033,1755720655715,-151.0,0.000276,7]
[380386034,1755720655724,-179.2604,0.000276,7]
[380386036,1755720655735,-179.2604,0.000276,7]
[380386037,1755720655745,-151.0,0.000276,7]
[380386038,1755720655759,-186.140501,0.000276,7]
[380386039,1755720655770,-151.0,0.000276,7]
[380386040,1755720655780,-534.693519,0.000276,7]
[380386042,1755720655790,-168.048287,0.000276,7]
[380386043,1755720655804,-534.693519,0.000276,7]
[380386044,1755720655814,-534.693519,0.000276,7]
[380386045,1755720655824,-168.048287,0.000276,7]
[380386048,1755720656000,-534.693519,0.000276,7]
[380386049,1755720656010,-168.048287,0.000276,7]
[380386050,1755720656019,-168.048287,0.000276,7]
[380386052,1755720656029,-151.0,0.000276,7]
[380386053,1755720656039,-151.0,0.000276,7]
[380386054,1755720656049,-151.0,0.000276,7]
[380386055,1755720656058,-151.0,0.000276,7]
[380386056,1755720656068,-151.0,0.000276,7]
[380386058,1755720656078,-151.0,0.000276,7]
[380386059,1755720656087,-220.403461,0.000276,7]
[380386060,1755720656097,-151.0,0.000276,7]
[380386061,1755720656107,-151.0,0.000276,7]
[380386062,1755720656116,-151.0,0.000276,7]
[380386064,1755720656125,-151.0,0.000276,7]
[380386065,1755720656134,-151.0,0.000276,7]
[380386066,1755720656144,-828.958501,0.000276,7]
[380386067,1755720656153,-165.112307,0.000276,7]
[380386068,1755720656163,-828.958501,0.000276,7]
[380386069,1755720656172,-165.112307,0.000276,7]
[380386070,1755720656181,-828.958501,0.000276,7]
[380386071,1755720656191,-151.0,0.000276,7]
[380386072,1755720656200,-165.112307,0.000276,7]
[380386073,1755720656210,-151.0,0.000276,7]
[380386074,1755720656219,-828.958501,0.000276,7]
[380386075,1755720656230,-165.112307,0.000276,7]
[380386076,1755720656239,-151.0,0.000276,7]
[380386077,1755720656248,-151.0,0.000276,7]
[380386078,1755720656258,-151.0,0.000276,7]
[380386080,1755720656268,-151.0,0.000276,7]
[380386081,1755720656277,-151.0,0.000276,7]
[380386082,1755720656287,-151.0,0.000276,7]
[380386083,1755720656297,-151.0,0.000276,7]
[380386084,1755720656306,-151.0,0.000276,7]
[380386085,1755720656315,-251.525272,0.000276,7]
[380386086,1755720656325,-251.525272,0.000276,7]
[380386088,1755720656334,-251.525272,0.000276,7]
[380386089,1755720656344,-251.525272,0.000276,7]
[380386090,1755720656353,-151.0,0.000276,7]
[380386091,1755720656362,-151.0,0.000276,7]
[380386092,1755720656371,-151.0,0.000276,7]
[380386093,1755720656381,-151.0,0.000276,7]
[380386094,1755720656390,-151.0,0.000276,7]
[380386095,1755720656400,-2054.09074321,0.000276,7]
[380386096,1755720656412,-388.12002,0.000276,7]
[380386097,1755720656423,-596.25,0.000276,7]
[380386098,1755720656434,-2981.12084809,0.000276,7]
[380386099,1755720656445,-2167.410855,0.000276,7]
[380386100,1755720656459,-1219.4810845,0.000276,7]
[380386101,1755720656470,-1198.51345442,0.000276,7]
[380386102,1755720656481,-778.752,0.000276,7]
[380386104,1755720656520,-200.0,0.0002371,7]
[380386105,1755720656529,-1621.82014999,0.000276,7]
[380386106,1755720656540,-21432.30787386,0.000276,7]
[380386108,1755720656551,-405.96429784,0.000276,7]
[380386109,1755720656562,-336.14357276,0.000276,7]
[380386110,1755720656573,-2367.10177124,0.000276,7]
[380386111,1755720656584,-557.96001026,0.000276,7]
[380386112,1755720656595,-1788.29501994,0.000276,7]
[380386113,1755720656606,-1006.23956339,0.000276,7]
[380386114,1755720656616,-3685.10627657,0.000276,7]
[380386115,1755720656627,-7356.45341118,0.000276,7]
[380386116,1755720656660,-660.66193815,0.00023601,2]
[380386117,1755720656672,-511.33806185,0.00023601,2]
[380386119,1755720656682,-59.72833815,0.00024945,2]
[380386120,1755720656694,-101.27166185,0.00024945,2]
[380386121,1755720656704,-375.39833815,0.000276,7]
[380386122,1755720656716,-944.87650117,0.000276,7]
[380386208,1755721017097,-146.4,0.00017425,2]
[380386209,1755721017119,-153.6,0.00017425,2]
[380386210,1755721024688,-146.4,0.0001785,2]
[380386211,1755721024711,-153.6,0.0001785,2]
[380386233,1755721481222,239.66,0.00025485,120]
[380386519,1755721832792,-349.2937869,0.00010845,2]
[380386520,1755721832804,-28.7413261,0.00010845,2]
[380386521,1755721832814,-325.7669217,0.000109,2]
[380386522,1755721832824,-71.56148665,0.000109,2]
[380386523,1755721832835,-164.02425966,0.000109,2]
[380386524,1755721832845,-297.90600589,0.000109,2]
[380386525,1755721832857,-148.41267598,0.000109,2]
[380386526,1755721832866,-300.0,0.00010911,2]
[380386527,1755721832876,-61.58732402,0.00010922,2]
[380386528,1755721832887,-238.41267598,0.00010922,2]
[380386529,1755721832900,-183.90270408,0.00010958,2]
[380386530,1755721832911,-116.09729592,0.00010958,2]
[380386531,1755721832921,-500.0,0.00010973,2]
[380386532,1755721832930,-195.21598721,0.0001099,2]
[380386533,1755721832939,-300.0,0.00010998,2]
[380386534,1755721832949,-300.0,0.00010998,2]
[380386535,1755721832959,-300.0,0.00010998,2]
[380386536,1755721832969,-1200.0,0.00010998,2]
[380386537,1755721832978,-419.11358076,0.00010999,2]
[380386538,1755721832988,-177.82267184,0.00010999,2]
[380386539,1755721832997,-224.47806238,0.00010999,2]
[380386540,1755721833007,-500.0,0.00010999,2]
[380386541,1755721833016,-500.0,0.00010999,2]
[380386542,1755721833026,-500.0,0.00010999,2]
[380386543,1755721833036,-346.6711963,0.00010999,2]
[380386544,1755721833046,-500.0,0.00010999,2]
[380386545,1755721833055,-500.0,0.00010999,2]
[380386546,1755721833065,-500.0,0.00010999,2]
[380386547,1755721833075,-500.0,0.00010999,2]
[380386548,1755721833085,-263.37828519,0.00010999,2]
[380386549,1755721833098,-500.0,0.00010999,2]
[380386550,1755721833108,-382.73848075,0.00010999,2]
[380386551,1755721833117,-191.64130403,0.00010999,2]
[380386552,1755721833126,-260.23679116,0.00010999,2]
[380386553,1755721833137,-321.58021339,0.00010999,2]
[380386554,1755721833150,-666.0,0.00010999,2]
[380386555,1755721833159,-666.0,0.00010999,2]
[380386556,1755721833170,-14243.25631149,0.00011,2]
[380386557,1755721833180,-6094.92418208,0.00011,2]
[380386558,1755721833193,-6115.18,0.00011,2]
[380386559,1755721833204,-598.45749551,0.00011,2]
[380386560,1755721833216,-4317.02479012,0.00011,2]
[380386565,1755721837914,-4420.56607314,0.000109,2]
[380386566,1755721837924,-2617021.77506873,0.00011,2]
[380386567,1755721837934,-1667072.64490277,0.00011,2]
[380386568,1755721837943,-7318.2,0.00011,2]
[380386569,1755721837952,-2664850.2446399,0.00011,2]
[380386570,1755721837962,-153297.15,0.00011,2]
[380386571,1755721837971,-151.0,0.00011,2]
[380386572,1755721837981,-151.0,0.00011,2]
[380386573,1755721837990,-235.821144,0.00011,2]
[380386574,1755721837999,-151.0,0.00011,2]
[380386575,1755721838008,-151.0,0.00011,2]
[380386576,1755721838017,-151.0,0.00011,2]
[380386577,1755721838028,-151.0,0.00011,2]
[380386578,1755721838038,-151.0,0.00011,2]
[380386580,1755721838048,-151.0,0.00011,2]
[380386582,1755721838057,-151.0,0.00011,2]
[380386583,1755721838068,-151.0,0.00011,2]
[380386584,1755721838080,-151.0,0.00011,2]
[380386585,1755721838091,-151.0,0.00011,2]
[380386586,1755721838105,-151.0,0.00011,2]
[380386587,1755721838115,-151.0,0.00011,2]
[380386588,1755721838126,-151.0,0.00011,2]
[380386589,1755721838135,-151.0,0.00011,2]
[380386591,1755721838146,-151.0,0.00011,2]
[380386593,1755721838155,-159.758689,0.00011,2]
[380386595,1755721838165,-151.0,0.00011,2]
[380386598,1755721838174,-151.0,0.00011,2]
[380386600,1755721838184,-151.0,0.00011,2]
[380386602,1755721838193,-151.0,0.00011,2]
[380386604,1755721838203,-306.52494,0.00011,2]
[380386606,1755721838212,-151.0,0.00011,2]
[380386608,1755721838221,-306.52494,0.00011,2]
[380386610,1755721838230,-240.864153,0.00011,2]
[380386612,1755721838239,-306.52494,0.00011,2]
[380386614,1755721838248,-151.0,0.00011,2]
[380386616,1755721838257,-306.52494,0.00011,2]
[380386618,1755721838266,-151.0,0.00011,2]
[380386620,1755721838275,-306.52494,0.00011,2]
[380386622,1755721838284,-151.0,0.00011,2]
[380386624,1755721838294,-151.0,0.00011,2]
[380386626,1755721838303,-151.0,0.00011,2]
[380386628,1755721838312,-151.0,0.00011,2]
[380386630,1755721838322,-151.0,0.00011,2]
[380386631,1755721838331,-151.0,0.00011,2]
[380386633,1755721838342,-306.52494,0.00011,2]
[380386636,1755721838352,-306.52494,0.00011,2]
[380386638,1755721838361,-306.52494,0.00011,2]
[380386639,1755721838371,-350.710148,0.00011,2]
[380386641,1755721838380,-350.710148,0.00011,2]
[380386643,1755721838389,-350.710148,0.00011,2]
[380386646,1755721838400,-350.710148,0.00011,2]
[380386648,1755721838411,-151.0,0.00011,2]
[380386650,1755721838420,-151.0,0.00011,2]
[380386651,1755721838430,-350.710148,0.00011,2]
[380386653,1755721838441,-350.710148,0.00011,2]
[380386655,1755721838450,-151.0,0.00011,2]
[380386657,1755721838459,-350.710148,0.00011,2]
[380386659,1755721838468,-151.0,0.00011,2]
[380386661,1755721838478,-350.710148,0.00011,2]
[380386663,1755721838487,-151.0,0.00011,2]
[380386665,1755721838496,-151.0,0.00011,2]
[380386667,1755721838506,-151.0,0.00011,2]
[380386669,1755721838515,-151.0,0.00011,2]
[380386671,1755721838525,-151.0,0.00011,2]
[380386673,1755721838534,-151.0,0.00011,2]
[380386675,1755721838544,-265.572609,0.00011,2]
[380386677,1755721838553,-265.572609,0.00011,2]
[380386679,1755721838563,-265.572609,0.00011,2]
[380386681,1755721838572,-265.572609,0.00011,2]
[380386683,1755721838581,-265.572609,0.00011,2]
[380386685,1755721838591,-265.572609,0.00011,2]
[380386687,1755721838600,-151.0,0.00011,2]
[380386690,1755721838610,-151.0,0.00011,2]
[380386691,1755721838619,-265.572609,0.00011,2]
[380386694,1755721838628,-265.572609,0.00011,2]
[380386695,1755721838638,-151.0,0.00011,2]
[380386697,1755721838647,-151.0,0.00011,2]
[380386699,1755721838656,-151.0,0.00011,2]
[380386701,1755721838666,-299.530814,0.00011,2]
[380386703,1755721838675,-151.0,0.00011,2]
[380386705,1755721838684,-299.530814,0.00011,2]
[380386707,1755721838694,-299.530814,0.00011,2]
[380386709,1755721838703,-151.0,0.00011,2]
[380386711,1755721838713,-151.0,0.00011,2]
[380386713,1755721838722,-299.530814,0.00011,2]
[380386715,1755721838731,-270.708129,0.00011,2]
[380386717,1755721838741,-151.0,0.00011,2]
[380386719,1755721838750,-4940.116629,0.00011,2]
[380386721,1755721838759,-151.0,0.00011,2]
[380386723,1755721838769,-151.0,0.00011,2]
[380386725,1755721838778,-4940.116629,0.00011,2]
[380386727,1755721838787,-151.0,0.00011,2]
[380386729,1755721838796,-299.530814,0.00011,2]
[380386731,1755721838805,-151.0,0.00011,2]
[380386733,1755721838815,-299.530814,0.00011,2]
[380386735,1755721838824,-151.0,0.00011,2]
[380386737,1755721838834,-151.0,0.00011,2]
[380386739,1755721838843,-4940.116629,0.00011,2]
[380386742,1755721838853,-151.0,0.00011,2]
[380386744,1755721838862,-299.530814,0.00011,2]
[380386746,1755721838871,-4940.116629,0.00011,2]
[380386748,1755721838880,-151.0,0.00011,2]
[380386750,1755721838889,-299.530814,0.00011,2]
[380386752,1755721838899,-151.0,0.00011,2]
[380386754,1755721838909,-151.0,0.00011,2]
[380386756,1755721838918,-4940.116629,0.00011,2]
[380386758,1755721838927,-4940.116629,0.00011,2]
[380386760,1755721838936,-4940.116629,0.00011,2]
[380386762,1755721838946,-4940.116629,0.00011,2]
[380386764,1755721838955,-151.0,0.00011,2]
[380386766,1755721838965,-264.299822,0.00011,2]
[380386768,1755721838974,-151.0,0.00011,2]
[380386770,1755721838984,-1096.41674161,0.00011099,2]
[380386772,1755721838993,-1096.41674153,0.00011099,2]
[380386774,1755721839002,-1096.41674153,0.0001112,2]
[380386776,1755721839012,-1096.41674153,0.0001123,2]
[380386778,1755721839022,-1096.41674153,0.0001134,2]
[380386780,1755721839032,-1096.41674153,0.0001145,2]
[380386782,1755721839042,-1096.41674153,0.0001156,2]
[380386784,1755721839052,-1096.41674153,0.0001167,2]
[380386786,1755721839062,-1096.41674153,0.0001178,2]
[380386788,1755721839071,-1096.41674153,0.0001189,2]
[380386790,1755721839081,-300.0,0.0001199,2]
[380386792,1755721839094,-300.0,0.0001199,2]
[380386794,1755721839106,-420.0,0.00012086,2]
[380386796,1755721839115,-150.0,0.00012086,2]
[380386798,1755721839125,-1680.0,0.00012098,2]
[380386800,1755721839136,-150.0,0.0001242,2]
[380386802,1755721839147,-150.0,0.0001242,2]
[380386804,1755721839156,-150.0,0.0001242,2]
[380386806,1755721839166,-1434.73,0.00012775,2]
[380386808,1755721839176,-235.58574627,0.00012776,2]
[380386810,1755721839185,-1030.40435938,0.00013,2]
[380386812,1755721839194,-716.08,0.00013699,2]
[380386814,1755721839204,-200.0,0.00013699,2]
[380386816,1755721839213,-200.0,0.00013699,2]
[380386818,1755721839223,-211.241115,0.00013699,2]
[380386820,1755721839232,-211.241115,0.00013699,2]
[380386822,1755721839241,-211.241115,0.00013699,2]
[380386824,1755721839251,-211.241115,0.00013699,2]
[380386826,1755721839260,-151.0,0.00013699,2]
[380386828,1755721839270,-151.0,0.00013699,2]
[380386830,1755721839279,-211.241115,0.00013699,2]
[380386832,1755721839288,-211.241115,0.00013699,2]
[380386834,1755721839297,-211.241115,0.00013699,2]
[380386836,1755721839306,-211.241115,0.00013699,2]
[380386838,1755721839315,-2048.21,0.00013745,2]
[380386840,1755721839325,-19999.99,0.00014504,2]
[380386880,1755721839740,-235.58574627,0.00014651,2]
[380386882,1755721839750,-12196.60554749,0.00014748,2]
[380386884,1755721839760,-27800.99,0.00015,2]
[380386886,1755721839771,-164.7623,0.0001501,30]
[380386888,1755721839780,-1167.6676729,0.00016,2]
[380386890,1755721839790,-235.58574627,0.00016527,2]
[380386892,1755721839799,-300.0,0.00016899,2]
[380386894,1755721839808,-666.0,0.00016899,2]
[380386896,1755721839817,-153297.15,0.000169,2]
[380386898,1755721839826,-13900.47,0.000177,2]
[380386900,1755721839835,-161.0,0.00017753,2]
[380386902,1755721839845,-500.0,0.00017973,2]
[380386904,1755721839856,-500.0,0.00017973,2]
[380386906,1755721839866,-500.0,0.00017973,2]
[380386908,1755721839875,-500.0,0.00017973,2]
[380386910,1755721839885,-500.0,0.00017973,2]
[380386912,1755721839894,-500.0,0.00017973,2]
[380386914,1755721839904,-500.0,0.00017973,2]
[380386916,1755721839913,-500.0,0.00017973,2]
[380386918,1755721839923,-500.0,0.00017973,2]
[380386920,1755721839933,-500.0,0.00017973,2]
[380386922,1755721839944,-500.0,0.00017973,2]
[380386925,1755721839954,-500.0,0.00017973,2]
[380386927,1755721839963,-500.0,0.00017973,2]
[380386929,1755721839973,-300.0,0.00017999,2]
[380386931,1755721839983,-300.0,0.00017999,2]
[380386933,1755721839992,-300.0,0.00017999,2]
[380386935,1755721840002,-398.93550161,0.00017999,2]
[380386937,1755721840011,-666.0,0.00017999,2]
[380386939,1755721840020,-1325089.70503829,0.00018,2]
[380386941,1755721840029,-18279.84576004,0.00018,2]
[380386943,1755721840039,-214.645999,0.00018,2]
[380386945,1755721840048,-214.645999,0.00018,2]
[380386947,1755721840058,-151.0,0.00018,2]
[380386948,1755721840067,-214.645999,0.00018,2]
[380386950,1755721840076,-214.645999,0.00018,2]
[380386952,1755721840086,-254.10269,0.00018,2]
[380386955,1755721840105,-151.0,0.00018,2]
[380386957,1755721840116,-176.818882,0.00018,2]
[380386959,1755721840125,-151.0,0.00018,2]
[380386961,1755721840135,-176.818882,0.00018,2]
[380386963,1755721840144,-209.436826,0.00018,2]
[380386965,1755721840155,-151.0,0.00018,2]
[380386967,1755721840164,-176.818882,0.00018,2]
[380386969,1755721840174,-209.436826,0.00018,2]
[380386971,1755721840184,-176.818882,0.00018,2]
[380386973,1755721840194,-209.436826,0.00018,2]
[380386975,1755721840203,-151.0,0.00018,2]
[380386977,1755721840212,-209.436826,0.00018,2]
[380386979,1755721840222,-151.0,0.00018,2]
[380386981,1755721840231,-151.0,0.00018,2]
[380386983,1755721840241,-276.684377,0.00018,2]
[380386985,1755721840250,-368.903733,0.00018,2]
[380386987,1755721840260,-368.903733,0.00018,2]
[380386989,1755721840271,-368.903733,0.00018,2]
[380386991,1755721840280,-368.903733,0.00018,2]
[380386993,1755721840290,-151.0,0.00018,2]
[380386995,1755721840300,-151.0,0.00018,2]
[380386997,1755721840310,-151.0,0.00018,2]
[380386999,1755721840319,-177.013246,0.00018,2]
[380387001,1755721840329,-177.013246,0.00018,2]
[380387002,1755721840339,-177.013246,0.00018,2]
[380387003,1755721840348,-177.013246,0.00018,2]
[380387005,1755721840358,-151.0,0.00018,2]
[380387006,1755721840367,-151.0,0.00018,2]
[380387007,1755721840376,-1275.24783,0.00018,2]
[380387008,1755721840386,-1275.24783,0.00018,2]
[380387009,1755721840397,-247.85332,0.00018,2]
[380387010,1755721840407,-1275.24783,0.00018,2]
[380387011,1755721840417,-1275.24783,0.00018,2]
[380387012,1755721840426,-151.0,0.00018,2]
[380387013,1755721840436,-151.0,0.00018,2]
[380387014,1755721840446,-211.241115,0.00018,2]
[380387015,1755721840455,-151.0,0.00018,2]
[380387016,1755721840464,-151.0,0.00018,2]
[380387017,1755721840474,-151.0,0.00018,2]
[380387018,1755721840483,-151.0,0.00018,2]
[380387019,1755721840493,-151.579801,0.00018,2]
[380387020,1755721840503,-284.885957,0.00018,2]
[380387021,1755721840513,-211.241115,0.00018,2]
[380387022,1755721840523,-211.241115,0.00018,2]
[380387023,1755721840532,-306.52494,0.00018,2]
[380387024,1755721840542,-211.241115,0.00018,2]
[380387025,1755721840551,-306.52494,0.00018,2]
[380387026,1755721840560,-151.0,0.00018,2]
[380387027,1755721840570,-151.0,0.00018,2]
[380387028,1755721840580,-174.739972,0.00018,2]
[380387029,1755721840590,-306.52494,0.00018,2]
[380387030,1755721840599,-151.471231,0.00018,2]
[380387031,1755721840609,-306.52494,0.00018,2]
[380387032,1755721840619,-350.710148,0.00018,2]
[380387033,1755721840628,-350.710148,0.00018,2]
[380387034,1755721840638,-151.0,0.00018,2]
[380387035,1755721840649,-350.710148,0.00018,2]
[380387036,1755721840659,-151.0,0.00018,2]
[380387037,1755721840668,-350.710148,0.00018,2]
[380387038,1755721840678,-151.0,0.00018,2]
[380387039,1755721840688,-151.0,0.00018,2]
[380387040,1755721840697,-265.572609,0.00018,2]
[380387041,1755721840707,-265.572609,0.00018,2]
[380387042,1755721840717,-265.572609,0.00018,2]
[380387043,1755721840726,-151.0,0.00018,2]
[380387044,1755721840735,-265.572609,0.00018,2]
[380387045,1755721840745,-151.0,0.00018,2]
[380387046,1755721840754,-299.530814,0.00018,2]
[380387047,1755721840764,-151.0,0.00018,2]
[380387048,1755721840773,-299.530814,0.00018,2]
[380387049,1755721840782,-151.0,0.00018,2]
[380387050,1755721840792,-151.0,0.00018,2]
[380387051,1755721840801,-4940.116629,0.00018,2]
[380387052,1755721840810,-151.0,0.00018,2]
[380387053,1755721840819,-299.530814,0.00018,2]
[380387054,1755721840829,-151.0,0.00018,2]
[380387055,1755721840838,-4940.116629,0.00018,2]
[380387056,1755721840847,-299.530814,0.00018,2]
[380387057,1755721840857,-151.0,0.00018,2]
[380387058,1755721840866,-4940.116629,0.00018,2]
[380387059,1755721840876,-4940.116629,0.00018,2]
[380387060,1755721840885,-1744.10402827,0.000181,2]
[380387061,1755721840894,-7318.2,0.000183,2]
[380387062,1755721840908,-235.58574627,0.00018402,2]
[380387063,1755721840917,-1000.0,0.00018521,2]
[380387064,1755721840926,-1000.0,0.00018521,2]
[380387065,1755721840935,-1000.0,0.00018521,2]
[380387066,1755721840944,-1000.0,0.00018521,2]